[Event "11th LCC Rapid 2019"]
[Site "London"]
[Date "2019.12.07"]
[Round "2.8"]
[White "Stoyanov, Viktor"]
[Black "Fernandez, Michael"]
[Result "1/2-1/2"]
[WhiteElo "2272"]
[BlackElo "2186"]
[PlyCount "100"]
[EventDate "2019.12.08"]
[EventType "swiss"]
[EventCountry "ENG"]
[TimeControl "15+10"]
[WhiteClock "0:01:10"]
[BlackClock "0:01:30"]

1. e4 {[%emt 0:00:00]} c6 {[%emt 0:00:00]} 2. c4 {[%emt 0:00:00]} d5 {[%emt 0:00:00]} 3. exd5 {[%emt 0:00:00]} cxd5 {[%emt 0:00:00]} 4. cxd5 {[%emt 0:00:00]} Nf6 {[%emt 0:00:00]} 5. Bb5+ {[%emt 0:00:00]} Nbd7 {[%emt 0:00:00]} 6. Nc3 {[%emt 0:00:00]} a6 {[%emt 0:00:00]} 7. Be2 {[%emt 0:00:00]} Nb6 {[%emt 0:00:00]} 8. Nf3 {[%emt 0:00:00]} Nbxd5 {[%emt 0:00:00]} 9. O-O {[%emt 0:00:00]} e6 {[%emt 0:00:00]} 10. Ne5 {[%emt 0:00:00]} Bd6 {[%emt 0:00:00]} 11. d4 {[%emt 0:00:00]} Qc7 {[%emt 0:00:00]} 12. Qa4+ {[%emt 0:00:00]} Nd7 {[%emt 0:00:00]} 13. Nxd5 {[%emt 0:00:00]} exd5 {[%emt 0:00:00]} 14. Bf3 {[%emt 0:00:00]} O-O {[%emt 0:00:00]} 15. Bxd5 {[%emt 0:00:00]} Nxe5 {[%emt 0:00:00]} 16. dxe5 {[%emt 0:00:00]} Bxe5 {[%emt 0:00:00]} 17. g3 {[%emt 0:00:00]} Bh3 {[%emt 0:00:00]} 18. Re1 {[%emt 0:00:00]} Rfe8 {[%emt 0:00:00]} 19. Bf4 {[%emt 0:00:00]} Re7 {[%emt 0:00:00]} 20. Bg5 {[%emt 0:00:00]} Ree8 {[%emt 0:01:07]} 21. Rac1 {[%emt 0:00:00]} Qd7 {[%emt 0:00:25]} 22. Qb3 {[%emt 0:01:43]} Bxb2 {[%emt 0:01:11]} 23. Rxe8+ {[%emt 0:00:27]} Rxe8 {[%emt 0:00:07]} 24. Rd1 {[%emt 0:00:01]} Bf6 {[%emt 0:01:11]} 25. Bxf6 {[%emt 0:00:09]} gxf6 {[%emt 0:00:02]} 26. Bg2 {[%emt 0:00:56]} b5 {[%emt 0:00:04]} 27. Bxh3 {[%emt 0:00:22]} Qxh3 {[%emt 0:00:02]} 28. Qf3 {[%emt 0:00:01]} Qe6 {[%emt 0:00:11]} 29. Rd4 {[%emt 0:00:11]} f5 {[%emt 0:00:05]} 30. Rf4 {[%emt 0:00:10]} Qxa2 {[%emt 0:00:02]} 31. Rxf5 {[%emt 0:00:04]} Qb1+ {[%emt 0:00:02]} 32. Kg2 {[%emt 0:00:08]} Qe4 {[%emt 0:00:01]} 33. Rxf7 {[%emt 0:00:18]} Qxf3+ {[%emt 0:00:10]} 34. Rxf3 {[%emt 0:00:02]} b4 {[%emt 0:00:08]} 35. Rf6 {[%emt 0:00:19]} Ra8 {[%emt 0:00:08]} 36. Rb6 {[%emt 0:00:08]} a5 {[%emt 0:00:08]} 37. f4 {[%emt 0:00:02]} Kf7 {[%emt 0:00:09]} 38. Kf3 {[%emt 0:00:02]} Ke7 {[%emt 0:00:21]} 39. Ke4 {[%emt 0:00:11]} Kd7 {[%emt 0:00:24]} 40. Kd5 {[%emt 0:00:29]} Kc7 {[%emt 0:00:01]} 41. Rb5 {[%emt 0:00:01]} Rd8+ {[%emt 0:00:35]} 42. Kc4 {[%emt 0:00:01]} Rd2 {[%emt 0:00:07]} 43. Rxa5 {[%emt 0:00:02]} Rxh2 {[%emt 0:00:04]} 44. Kxb4 {[%emt 0:00:15]} h5 {[%emt 0:00:17]} 45. Kc5 {[%emt 0:00:44]} h4 {[%emt 0:00:08]} 46. gxh4 {[%emt 0:00:01]} Rxh4 {[%emt 0:00:01]} 47. Ra4 {[%emt 0:00:14]} Rh5+ {[%emt 0:00:06]} 48. Kd4 {[%emt 0:00:01]} Kd6 {[%emt 0:00:06]} 49. Ra6+ {[%emt 0:00:01]} Ke7 {[%emt 0:00:00]} 50. Ke4 {[%emt 0:00:02]} Kf7 {[%emt 0:00:02]} 1/2-1/2

[Event "11th LCC Rapid 2019"]
[Site "London"]
[Date "2019.12.07"]
[Round "2.9"]
[White "Ilfeld, Etan"]
[Black "Myall, Ivan J"]
[Result "1/2-1/2"]
[WhiteElo "2188"]
[BlackElo "1994"]
[PlyCount "90"]
[EventDate "2019.12.08"]
[EventType "swiss"]
[EventCountry "ENG"]
[TimeControl "15+10"]

1. e4 {[%emt 0:18:46]} e5 {[%emt 0:00:03]} 2. Nf3 {[%emt 0:00:02]} Nc6 {[%emt 0:00:01]} 3. Bb5 {[%emt 0:00:03]} Bc5 {[%emt 0:00:02]} 4. O-O {[%emt 0:02:07]} Nd4 {[%emt 0:00:02]} 5. Nxd4 {[%emt 0:00:07]} Bxd4 {[%emt 0:00:02]} 6. c3 {[%emt 0:00:16]} Bb6 {[%emt 0:00:01]} 7. d4 {[%emt 0:00:18]} c6 {[%emt 0:00:02]} 8. Be2 {[%emt 0:00:44]} d6 {[%emt 0:00:03]} 9. Na3 {[%emt 0:00:47]} Nf6 {[%emt 0:00:10]} 10. Qd3 {[%emt 0:00:40]} Qe7 {[%emt 0:00:15]} 11. dxe5 {[%emt 0:02:34]} dxe5 {[%emt 0:00:04]} 12. Nc4 {[%emt 0:00:12]} Bc7 {[%emt 0:00:11]} 13. Bg5 {[%emt 0:00:21]} h6 {[%emt 0:00:27]} 14. Bh4 {[%emt 0:00:06]} g5 {[%emt 0:00:34]} 15. Bg3 {[%emt 0:00:02]} h5 {[%emt 0:00:22]} 16. h4 {[%emt 0:01:27]} b5 {[%emt 0:01:24]} 17. Ne3 {[%emt 0:00:44]} Ng4 {[%emt 0:00:02]} 18. hxg5 {[%emt 0:02:33]} Qxg5 {[%emt 0:00:22]} 19. Rad1 {[%emt 0:02:10]} h4 {[%emt 0:00:36]} 20. f4 {[%emt 0:01:47]} exf4 {[%emt 0:00:48]} 21. Bxf4 {[%emt 0:00:06]} Bxf4 {[%emt 0:00:43]} 22. Rxf4 {[%emt 0:00:01]} Nxe3 {[%emt 0:02:29]} 23. Qxe3 {[%emt 0:00:02]} h3 {[%emt 0:00:26]} 24. g3 {[%emt 0:00:24]} h2+ {[%emt 0:00:38]} 25. Kh1 {[%emt 0:00:33]} Rh3 {[%emt 0:00:35]} 26. Rf3 {[%emt 0:00:12]} Qxe3 {[%emt 0:01:11]} 27. Rxe3 {[%emt 0:00:01]} Be6 {[%emt 0:01:09]} 28. Bf1 {[%emt 0:00:19]} Rh6 {[%emt 0:00:33]} 29. b3 {[%emt 0:00:17]} Ke7 {[%emt 0:00:44]} 30. Rd2 {[%emt 0:00:03]} Rah8 {[%emt 0:00:37]} 31. Ree2 {[%emt 0:00:30]} Rg6 {[%emt 0:02:11]} 32. Re3 {[%emt 0:00:07]} Bh3 {[%emt 0:00:43]} 33. Bd3 {[%emt 0:00:38]} Rhg8 {[%emt 0:00:31]} 34. Kxh2 {[%emt 0:00:04]} Be6 {[%emt 0:00:13]} 35. Bf1 {[%emt 0:00:14]} Rh8+ {[%emt 0:00:28]} 36. Kg1 {[%emt 0:00:02]} Rhg8 {[%emt 0:00:16]} 37. Kf2 {[%emt 0:00:03]} Rf6+ {[%emt 0:00:24]} 38. Rf3 {[%emt 0:00:09]} Rh6 {[%emt 0:00:03]} 39. Bg2 {[%emt 0:00:06]} a5 {[%emt 0:00:22]} 40. Rfd3 {[%emt 0:00:08]} Rf6+ {[%emt 0:00:11]} 41. Rf3 {[%emt 0:00:02]} Rh6 {[%emt 0:00:04]} 42. Ke3 {[%emt 0:00:20]} Rhg6 {[%emt 0:00:06]} 43. Kf2 {[%emt 0:00:07]} Rh6 {[%emt 0:00:01]} 44. Rfd3 {[%emt 0:00:27]} Rf6+ {[%emt 0:00:08]} 45. Rf3 {[%emt 0:00:12]} Rh6 {[%emt 0:00:02]} 1/2-1/2

[Event "11th LCC Rapid 2019"]
[Site "London"]
[Date "2019.12.07"]
[Round "2.10"]
[White "Rahman, Asad"]
[Black "Mihalik, Agoston"]
[Result "0-1"]
[WhiteElo "2200"]
[BlackElo "2196"]
[PlyCount "104"]
[EventDate "2019.12.08"]
[EventType "swiss"]
[EventCountry "ENG"]
[TimeControl "15+10"]
[WhiteClock "0:02:08"]
[BlackClock "0:09:00"]

1. e4 {[%emt 0:00:00]} c5 {[%emt 0:00:00]} 2. Nf3 {[%emt 0:00:00]} d6 {[%emt 0:00:00]} 3. d4 {[%emt 0:00:00]} cxd4 {[%emt 0:00:00]} 4. Nxd4 {[%emt 0:00:00]} Nf6 {[%emt 0:00:00]} 5. Nc3 {[%emt 0:00:00]} a6 {[%emt 0:00:00]} 6. Bg5 {[%emt 0:00:00]} Nbd7 {[%emt 0:00:00]} 7. Qd2 {[%emt 0:00:00]} h6 {[%emt 0:00:00]} 8. Be3 {[%emt 0:00:00]} Ng4 {[%emt 0:00:00]} 9. O-O-O {[%emt 0:00:00]} Nxe3 {[%emt 0:00:00]} 10. Qxe3 {[%emt 0:00:00]} e6 {[%emt 0:00:00]} 11. f4 {[%emt 0:00:00]} Qc7 {[%emt 0:00:00]} 12. Kb1 {[%emt 0:00:00]} Be7 {[%emt 0:00:00]} 13. f5 {[%emt 0:00:00]} Ne5 {[%emt 0:00:00]} 14. fxe6 {[%emt 0:00:00]} fxe6 {[%emt 0:00:00]} 15. Be2 {[%emt 0:00:00]} O-O {[%emt 0:00:00]} 16. h4 {[%emt 0:00:00]} b5 {[%emt 0:00:00]} 17. Rdf1 {[%emt 0:00:00]} Nc4 {[%emt 0:00:00]} 18. Bxc4 {[%emt 0:00:00]} Qxc4 {[%emt 0:00:00]} 19. Rxf8+ {[%emt 0:00:00]} Bxf8 {[%emt 0:00:00]} 20. g4 {[%emt 0:00:00]} b4 {[%emt 0:00:00]} 21. Nce2 {[%emt 0:00:00]} e5 {[%emt 0:00:00]} 22. Nf5 {[%emt 0:00:00]} Bxf5 {[%emt 0:00:00]} 23. gxf5 {[%emt 0:00:00]} Be7 {[%emt 0:00:00]} 24. Qd3 {[%emt 0:00:00]} Qxd3 {[%emt 0:00:00]} 25. cxd3 {[%emt 0:00:00]} Rd8 {[%emt 0:00:00]} 26. d4 {[%emt 0:00:00]} exd4 {[%emt 0:00:00]} 27. Nxd4 {[%emt 0:00:00]} Bf6 {[%emt 0:00:00]} 28. Nc6 {[%emt 0:00:00]} Re8 {[%emt 0:00:00]} 29. Re1 {[%emt 0:00:00]} Bxh4 {[%emt 0:00:00]} 30. Re2 {[%emt 0:00:00]} a5 {[%emt 0:00:00]} 31. Nxa5 {[%emt 0:00:00]} Rc8 {[%emt 0:00:00]} 32. Nb7 {[%emt 0:00:00]} Bg3 {[%emt 0:00:00]} 33. Rg2 {[%emt 0:00:00]} Be5 {[%emt 0:00:00]} 34. Rg6 {[%emt 0:00:00]} Bf4 {[%emt 0:00:32]} 35. b3 {[%emt 0:00:00]} Rc1+ {[%emt 0:00:58]} 36. Kb2 {[%emt 0:00:00]} Rc6 {[%emt 0:00:30]} 37. Nd8 {[%emt 0:01:08]} Rc8 {[%emt 0:00:57]} 38. Ne6 {[%emt 0:00:00]} Be5+ {[%emt 0:00:03]} 39. Kb1 {[%emt 0:00:00]} Kf7 {[%emt 0:00:08]} 40. Rg2 {[%emt 0:00:00]} Rc3 {[%emt 0:00:10]} 41. Nd8+ {[%emt 0:00:00]} Kg8 {[%emt 0:00:10]} 42. Rc2 {[%emt 0:00:00]} h5 {[%emt 0:01:25]} 43. Rxc3 {[%emt 0:00:00]} Bxc3 {[%emt 0:00:14]} 44. Ne6 {[%emt 0:00:00]} Be5 {[%emt 0:00:39]} 45. a3 {[%emt 0:00:00]} bxa3 {[%emt 0:00:06]} 46. b4 {[%emt 0:00:00]} h4 {[%emt 0:00:21]} 47. b5 {[%emt 0:00:00]} h3 {[%emt 0:00:17]} 48. b6 {[%emt 0:00:00]} h2 {[%emt 0:00:03]} 49. b7 {[%emt 0:00:00]} h1=Q+ {[%emt 0:00:02]} 50. Ka2 {[%emt 0:00:00]} Qa1+ {[%emt 0:00:02]} 51. Kb3 {[%emt 0:00:00]} Qb2+ {[%emt 0:00:02]} 52. Kc4 {[%emt 0:00:00]} Qxb7 {[%emt 0:00:08]} 0-1

[Event "11th LCC Rapid 2019"]
[Site "London"]
[Date "2019.12.07"]
[Round "2.11"]
[White "Richardson, John R"]
[Black "Makkar, Rajat"]
[Result "0-1"]
[WhiteElo "2241"]
[BlackElo "2137"]
[PlyCount "50"]
[EventDate "2019.12.08"]
[EventType "swiss"]
[EventCountry "ENG"]
[TimeControl "15+10"]
[WhiteClock "0:06:40"]
[BlackClock "0:02:52"]

1. d4 {[%emt 0:00:00]} d5 {[%emt 0:00:00]} 2. c4 {[%emt 0:00:00]} c6 {[%emt 0:00:00]} 3. Nc3 {[%emt 0:00:00]} Nf6 {[%emt 0:00:00]} 4. Nf3 {[%emt 0:00:00]} e6 {[%emt 0:00:00]} 5. e3 {[%emt 0:00:00]} Nbd7 {[%emt 0:00:00]} 6. Qc2 {[%emt 0:00:00]} Bd6 {[%emt 0:00:00]} 7. Bd3 {[%emt 0:00:00]} dxc4 {[%emt 0:00:00]} 8. Bxc4 {[%emt 0:00:00]} b5 {[%emt 0:00:00]} 9. Bd3 {[%emt 0:00:00]} O-O {[%emt 0:00:00]} 10. e4 {[%emt 0:00:00]} e5 {[%emt 0:00:00]} 11. O-O {[%emt 0:00:00]} Bb7 {[%emt 0:00:00]} 12. Bg5 {[%emt 0:00:00]} exd4 {[%emt 0:00:00]} 13. e5 {[%emt 0:00:00]} Nxe5 {[%emt 0:00:00]} 14. Bxh7+ {[%emt 0:00:00]} Kh8 {[%emt 0:00:00]} 15. Nxd4 {[%emt 0:00:00]} g6 {[%emt 0:00:00]} 16. Rad1 {[%emt 0:00:00]} Kxh7 {[%emt 0:00:00]} 17. Ne4 {[%emt 0:00:00]} Neg4 {[%emt 0:00:00]} 18. Nf5 {[%emt 0:00:00]} Bxh2+ {[%emt 0:00:00]} 19. Kh1 {[%emt 0:00:00]} Qc7 {[%emt 0:00:00]} 20. Nxf6+ {[%emt 0:00:00]} Nxf6 {[%emt 0:00:00]} 21. Bxf6 {[%emt 0:00:00]} Be5 {[%emt 0:00:00]} 22. Be7 {[%emt 0:00:00]} Rh8 {[%emt 0:00:00]} 23. Bd6 {[%emt 0:00:45]} Kg8+ {[%emt 0:00:00]} 24. Kg1 {[%emt 0:00:46]} Bh2+ {[%emt 0:00:00]} 25. Bxh2 {[%emt 0:00:02]} Qxh2# {[%emt 0:00:00]} 0-1

[Event "11th LCC Rapid 2019"]
[Site "London"]
[Date "2019.12.07"]
[Round "2.12"]
[White "Karumazondo, Ragarirai Ernest"]
[Black "Abrahams, Daniel"]
[Result "0-1"]
[WhiteElo "1900"]
[BlackElo "2176"]
[PlyCount "118"]
[EventDate "2019.12.08"]
[EventType "swiss"]
[EventCountry "ENG"]
[TimeControl "15+10"]
[WhiteClock "0:11:22"]
[BlackClock "0:00:14"]

1. e4 {[%emt 0:00:00]} c5 {[%emt 0:00:00]} 2. d4 {[%emt 0:00:00]} cxd4 {[%emt 0:00:00]} 3. c3 {[%emt 0:00:00]} d5 {[%emt 0:00:00]} 4. exd5 {[%emt 0:00:00]} Nf6 {[%emt 0:00:00]} 5. Nf3 {[%emt 0:00:00]} Qxd5 {[%emt 0:00:00]} 6. cxd4 {[%emt 0:00:00]} e6 {[%emt 0:00:00]} 7. Bd3 {[%emt 0:00:00]} Be7 {[%emt 0:00:00]} 8. Nc3 {[%emt 0:00:00]} Qh5 {[%emt 0:00:00]} 9. O-O {[%emt 0:00:00]} O-O {[%emt 0:00:00]} 10. Bf4 {[%emt 0:00:00]} Rd8 {[%emt 0:00:00]} 11. Re1 {[%emt 0:00:00]} Nc6 {[%emt 0:00:00]} 12. a3 {[%emt 0:00:00]} b6 {[%emt 0:00:00]} 13. Rc1 {[%emt 0:00:00]} Bb7 {[%emt 0:00:00]} 14. Bb1 {[%emt 0:00:00]} Rd7 {[%emt 0:00:00]} 15. h3 {[%emt 0:00:00]} Rad8 {[%emt 0:00:00]} 16. Ne2 {[%emt 0:00:00]} h6 {[%emt 0:00:00]} 17. Be5 {[%emt 0:00:00]} Nxe5 {[%emt 0:00:00]} 18. Nxe5 {[%emt 0:00:00]} Rd5 {[%emt 0:00:00]} 19. Qc2 {[%emt 0:00:00]} Rxe5 {[%emt 0:00:00]} 20. dxe5 {[%emt 0:00:00]} Qxe5 {[%emt 0:00:34]} 21. Qc7 {[%emt 0:00:00]} Qd5 {[%emt 0:00:00]} 22. Nf4 {[%emt 0:00:00]} Qd7 {[%emt 0:00:00]} 23. Qxd7 {[%emt 0:00:00]} Rxd7 {[%emt 0:00:00]} 24. Red1 {[%emt 0:00:07]} Rxd1+ {[%emt 0:00:00]} 25. Rxd1 {[%emt 0:00:01]} g5 {[%emt 0:00:00]} 26. Nd3 {[%emt 0:00:38]} Nd5 {[%emt 0:00:00]} 27. g3 {[%emt 0:00:10]} Bf6 {[%emt 0:00:00]} 28. Rd2 {[%emt 0:00:29]} Kf8 {[%emt 0:00:00]} 29. Nb4 {[%emt 0:00:05]} Nxb4 {[%emt 0:00:00]} 30. axb4 {[%emt 0:00:01]} Ke7 {[%emt 0:00:00]} 31. Bd3 {[%emt 0:00:24]} Be5 {[%emt 0:00:00]} 32. Kf1 {[%emt 0:00:05]} Bd6 {[%emt 0:00:00]} 33. b5 {[%emt 0:00:09]} Bd5 {[%emt 0:00:00]} 34. Ke2 {[%emt 0:00:18]} f5 {[%emt 0:00:00]} 35. g4 {[%emt 0:00:03]} f4 {[%emt 0:00:00]} 36. f3 {[%emt 0:00:05]} Kf6 {[%emt 0:00:00]} 37. Be4 {[%emt 0:00:21]} Bc4+ {[%emt 0:00:00]} 38. Bd3 {[%emt 0:00:09]} Bd5 {[%emt 0:00:00]} 39. Rc2 {[%emt 0:00:22]} Ke5 {[%emt 0:00:00]} 40. Rc8 {[%emt 0:00:11]} Kd4 {[%emt 0:00:00]} 41. Rd8 {[%emt 0:00:51]} Be5 {[%emt 0:00:00]} 42. Be4 {[%emt 0:00:32]} Kc5 {[%emt 0:00:00]} 43. Bxd5 {[%emt 0:00:02]} exd5 {[%emt 0:00:00]} 44. b3 {[%emt 0:00:15]} Bd4 {[%emt 0:00:00]} 45. Kd3 {[%emt 0:00:06]} Bf2 {[%emt 0:00:00]} 46. Rd7 {[%emt 0:00:12]} Kxb5 {[%emt 0:00:00]} 47. Rxa7 {[%emt 0:00:01]} Kb4 {[%emt 0:00:00]} 48. Rh7 {[%emt 0:00:33]} Kxb3 {[%emt 0:00:00]} 49. Rxh6 {[%emt 0:00:03]} b5 {[%emt 0:00:00]} 50. Rd6 {[%emt 0:00:04]} d4 {[%emt 0:00:00]} 51. Rd5 {[%emt 0:00:01]} b4 {[%emt 0:00:00]} 52. Rxg5 {[%emt 0:00:02]} Kb2 {[%emt 0:00:00]} 53. Kc4 {[%emt 0:00:11]} Kc2 {[%emt 0:00:00]} 54. Rb5 {[%emt 0:01:59]} d3 {[%emt 0:00:00]} 55. g5 {[%emt 0:00:27]} Bd4 {[%emt 0:00:00]} 56. Rd5 {[%emt 0:00:21]} b3 {[%emt 0:00:00]} 57. Rxd4 {[%emt 0:00:03]} b2 {[%emt 0:00:00]} 58. Rxd3 {[%emt 0:00:17]} b1=Q {[%emt 0:00:00]} 59. h4 {[%emt 0:00:13]} Qf1 {[%emt 0:00:00]} 0-1

[Event "11th LCC Rapid 2019"]
[Site "London"]
[Date "2019.12.07"]
[Round "2.13"]
[White "Willow, Jonah B"]
[Black "Royal, Shreyas"]
[Result "1-0"]
[WhiteElo "2355"]
[BlackElo "1941"]
[PlyCount "111"]
[EventDate "2019.12.08"]
[EventType "swiss"]
[EventCountry "ENG"]
[TimeControl "15+10"]

1. e4 {[%emt 0:05:34]} e5 {[%emt 0:00:02]} 2. Nf3 {[%emt 0:00:03]} Nc6 {[%emt 0:00:02]} 3. Nc3 {[%emt 0:00:08]} Nf6 {[%emt 0:00:03]} 4. Bb5 {[%emt 0:00:03]} Bb4 {[%emt 0:00:16]} 5. O-O {[%emt 0:00:02]} O-O {[%emt 0:00:31]} 6. d3 {[%emt 0:00:01]} Bxc3 {[%emt 0:00:25]} 7. bxc3 {[%emt 0:00:02]} d6 {[%emt 0:00:01]} 8. Bg5 {[%emt 0:00:02]} Bg4 {[%emt 0:00:52]} 9. h3 {[%emt 0:00:09]} Bh5 {[%emt 0:00:02]} 10. g4 {[%emt 0:00:33]} Bg6 {[%emt 0:00:19]} 11. Nh4 {[%emt 0:00:37]} h6 {[%emt 0:02:42]} 12. Bxf6 {[%emt 0:02:25]} Qxf6 {[%emt 0:00:13]} 13. Nf5 {[%emt 0:00:02]} Ne7 {[%emt 0:01:08]} 14. Nxe7+ {[%emt 0:03:20]} Qxe7 {[%emt 0:00:05]} 15. Qf3 {[%emt 0:00:05]} h5 {[%emt 0:02:16]} 16. Kg2 {[%emt 0:00:44]} h4 {[%emt 0:00:36]} 17. Qe3 {[%emt 0:00:15]} c6 {[%emt 0:01:03]} 18. Bc4 {[%emt 0:00:01]} Rad8 19. Qxa7 {[%emt 0:01:13]} d5 {[%emt 0:00:08]} 20. exd5 {[%emt 0:00:02]} cxd5 {[%emt 0:00:01]} 21. Bb3 {[%emt 0:00:02]} d4 {[%emt 0:01:05]} 22. cxd4 {[%emt 0:00:40]} Rxd4 {[%emt 0:01:25]} 23. Rae1 {[%emt 0:00:04]} Qc7 {[%emt 0:00:48]} 24. f4 {[%emt 0:02:53]} Rxf4 {[%emt 0:01:52]} 25. Rxf4 {[%emt 0:00:02]} exf4 {[%emt 0:00:01]} 26. Qf2 {[%emt 0:00:03]} Qc6+ {[%emt 0:00:50]} 27. Qf3 {[%emt 0:00:12]} Rd8 {[%emt 0:00:59]} 28. Qxc6 {[%emt 0:00:31]} bxc6 29. Kf3 {[%emt 0:00:01]} Rd4 {[%emt 0:00:03]} 30. Re7 {[%emt 0:00:40]} Kf8 31. Rc7 {[%emt 0:00:11]} f5 {[%emt 0:00:20]} 32. Rxc6 {[%emt 0:00:44]} fxg4+ {[%emt 0:00:19]} 33. Kxg4 {[%emt 0:01:35]} Be8 {[%emt 0:00:03]} 34. Rc4 {[%emt 0:01:31]} Rxc4 {[%emt 0:01:03]} 35. Bxc4 {[%emt 0:00:02]} Bd7+ {[%emt 0:00:10]} 36. Kxf4 {[%emt 0:00:20]} Bxh3 {[%emt 0:00:01]} 37. Kg5 Ke7 {[%emt 0:00:07]} 38. Kxh4 {[%emt 0:00:02]} Bd7 {[%emt 0:00:02]} 39. Kg5 {[%emt 0:00:03]} Be8 {[%emt 0:00:01]} 40. d4 {[%emt 0:00:35]} Kd6 {[%emt 0:00:01]} 41. Bb3 {[%emt 0:00:06]} Kc7 {[%emt 0:00:11]} 42. Kf5 {[%emt 0:00:07]} Kd6 43. c4 {[%emt 0:00:21]} Bh5 {[%emt 0:00:09]} 44. Kg5 {[%emt 0:00:08]} Be8 {[%emt 0:00:04]} 45. c5+ {[%emt 0:00:04]} Kc7 {[%emt 0:00:01]} 46. d5 {[%emt 0:00:06]} Kd8 {[%emt 0:00:08]} 47. d6 {[%emt 0:00:28]} Kc8 {[%emt 0:00:02]} 48. Be6+ {[%emt 0:00:10]} Kd8 49. a3 {[%emt 0:00:12]} Bc6 {[%emt 0:00:32]} 50. Kg6 {[%emt 0:00:02]} Be8+ {[%emt 0:00:02]} 51. Kxg7 {[%emt 0:00:03]} Bc6 {[%emt 0:00:04]} 52. Kf6 {[%emt 0:00:02]} Ba4 {[%emt 0:00:01]} 53. Ke5 {[%emt 0:00:03]} Bb5 54. Kd5 {[%emt 0:00:03]} Be8 {[%emt 0:00:05]} 55. c6 {[%emt 0:00:01]} Bd7 {[%emt 0:00:01]} 56. c7+ {[%emt 0:00:07]} 1-0

[Event "11th LCC Rapid 2019"]
[Site "London"]
[Date "2019.12.07"]
[Round "2.14"]
[White "Ortiz Sanchez, Luis"]
[Black "Salem, Ihab"]
[Result "0-1"]
[WhiteElo "1947"]
[BlackElo "2071"]
[PlyCount "124"]
[EventDate "2019.12.08"]
[EventType "swiss"]
[EventCountry "ENG"]
[TimeControl "15+10"]

1. e4 {[%emt 0:05:02]} e5 {[%emt 0:00:06]} 2. Nf3 {[%emt 0:00:03]} Nc6 {[%emt 0:00:02]} 3. d4 {[%emt 0:00:05]} exd4 {[%emt 0:00:05]} 4. Nxd4 {[%emt 0:00:02]} Nf6 {[%emt 0:00:03]} 5. Nxc6 {[%emt 0:00:06]} bxc6 {[%emt 0:00:03]} 6. Qe2 {[%emt 0:00:06]} Bb4+ {[%emt 0:00:50]} 7. c3 {[%emt 0:00:02]} Be7 {[%emt 0:00:03]} 8. e5 {[%emt 0:00:23]} Nd5 {[%emt 0:00:08]} 9. c4 {[%emt 0:00:03]} Bb4+ {[%emt 0:00:56]} 10. Nd2 {[%emt 0:00:17]} Ne7 {[%emt 0:00:41]} 11. Qe4 {[%emt 0:00:18]} d5 {[%emt 0:01:39]} 12. exd6 {[%emt 0:00:09]} Bxd6 {[%emt 0:01:10]} 13. Be2 {[%emt 0:00:21]} Bf5 {[%emt 0:00:09]} 14. Qf3 {[%emt 0:00:15]} O-O {[%emt 0:00:25]} 15. O-O {[%emt 0:00:02]} Rb8 {[%emt 0:01:25]} 16. Nb3 {[%emt 0:00:06]} Re8 {[%emt 0:02:18]} 17. Be3 {[%emt 0:00:15]} Qd7 {[%emt 0:00:54]} 18. Rad1 {[%emt 0:01:02]} Bc2 {[%emt 0:00:50]} 19. Rd2 {[%emt 0:00:01]} Bxb3 {[%emt 0:00:05]} 20. axb3 {[%emt 0:00:03]} Qf5 {[%emt 0:00:50]} 21. Bxa7 {[%emt 0:00:35]} Qxf3 {[%emt 0:00:15]} 22. Bxf3 Rxb3 {[%emt 0:00:06]} 23. Re2 {[%emt 0:00:26]} Ra8 {[%emt 0:01:22]} 24. c5 {[%emt 0:00:04]} Rxa7 {[%emt 0:00:15]} 25. cxd6 {[%emt 0:00:02]} cxd6 {[%emt 0:00:11]} 26. Bxc6 {[%emt 0:00:06]} g6 {[%emt 0:00:45]} 27. Rfe1 {[%emt 0:00:01]} Nxc6 {[%emt 0:00:13]} 28. h4 Rab7 {[%emt 0:00:15]} 29. Rc1 {[%emt 0:00:05]} Ne5 {[%emt 0:00:03]} 30. Rc8+ {[%emt 0:00:08]} Kg7 31. Rd8 R7b6 {[%emt 0:00:46]} 32. Rc2 {[%emt 0:00:28]} h5 {[%emt 0:00:13]} 33. Rc7 {[%emt 0:00:15]} Rxb2 {[%emt 0:00:19]} 34. Re8 {[%emt 0:00:01]} Rb7 {[%emt 0:00:15]} 35. Rcc8 {[%emt 0:00:03]} Rb1+ {[%emt 0:00:03]} 36. Kh2 Ng4+ {[%emt 0:00:06]} 37. Kg3 {[%emt 0:00:01]} d5 {[%emt 0:00:10]} 38. f3 {[%emt 0:00:16]} Nf6 {[%emt 0:00:04]} 39. Red8 {[%emt 0:00:01]} Rd1 {[%emt 0:00:12]} 40. Kf4 {[%emt 0:00:10]} Rd2 {[%emt 0:00:11]} 41. g4 {[%emt 0:00:13]} hxg4 {[%emt 0:00:02]} 42. fxg4 {[%emt 0:00:02]} Rb4+ {[%emt 0:00:02]} 43. Ke3 {[%emt 0:00:06]} Rh2 {[%emt 0:00:13]} 44. g5 {[%emt 0:00:02]} Rb3+ {[%emt 0:00:58]} 45. Kd4 {[%emt 0:00:09]} Rxh4+ {[%emt 0:00:02]} 46. Ke5 {[%emt 0:00:05]} Re4+ {[%emt 0:00:42]} 47. Kd6 {[%emt 0:00:05]} Re6+ {[%emt 0:00:11]} 48. Kc5 {[%emt 0:00:03]} Rc3+ {[%emt 0:00:28]} 49. Kb4 {[%emt 0:00:07]} Rxc8 {[%emt 0:00:02]} 50. gxf6+ {[%emt 0:00:02]} Kxf6 {[%emt 0:00:02]} 51. Rxc8 {[%emt 0:00:02]} g5 {[%emt 0:00:05]} 52. Kc5 {[%emt 0:00:01]} Ke5 {[%emt 0:00:04]} 53. Rh8 {[%emt 0:00:11]} f5 {[%emt 0:00:05]} 54. Rh1 f4 {[%emt 0:00:02]} 55. Re1+ {[%emt 0:00:02]} Kf5 56. Rg1 {[%emt 0:00:01]} g4 57. Kd4 {[%emt 0:00:01]} f3 {[%emt 0:00:04]} 58. Kxd5 {[%emt 0:00:05]} Re8 {[%emt 0:00:01]} 59. Kd4 {[%emt 0:00:06]} Kf4 {[%emt 0:00:01]} 60. Rh1 {[%emt 0:00:06]} f2 {[%emt 0:00:03]} 61. Rh7 {[%emt 0:00:05]} Kg3 {[%emt 0:00:06]} 62. Rf7 {[%emt 0:00:14]} Kg2 {[%emt 0:00:02]} 0-1